bitfinex-derivatives/quotes_ETHF0:USTF0_20241129
["timestamp","ask_amount","ask_price","bid_price","bid_amount"]
[1732868235599,1.16118,3563.5,3563.4,40.8]
[1732868235800,1.16118,3563.5,3563.4,41.02813656]
[1732868236596,0.28058,3563.5,3563.4,41.02813656]
[1732868238200,0.68498,3563.5,3563.4,41.02813656]
[1732868238500,12.45116481,3563.5,3563.4,41.02813656]
[1732868238803,0.68498,3563.5,3563.4,41.02813656]
[1732868239396,6.63113884,3563.6,3563.4,41.02813656]
[1732868239600,6.63113884,3563.6,3563.5,0.22813656]
[1732868239801,11.76711103,3563.6,3563.5,0.22813656]
[1732868239996,0.28056,3563.7,3563.5,0.22813656]
[1732868239997,6.91169884,3563.7,3563.5,0.22813656]
[1732868240202,6.91169884,3563.7,3563.4,41.50078]
[1732868240203,6.91169884,3563.7,3563.6,0.22813656]
[1732868240509,12.04749278,3563.7,3563.6,0.22813656]
[1732868242006,12.04749278,3563.7,3563.4,41.50078]
[1732868242306,6.91169884,3563.7,3563.6,0.4189]
[1732868242499,6.63113884,3563.7,3563.6,0.64701956]
[1732868242702,11.7675584,3563.7,3563.6,0.64701956]
[1732868243603,11.7675584,3563.7,3563.6,41.44701956]
[1732868244205,13.0156351,3563.7,3563.6,41.44701956]
[1732868244615,13.2961951,3563.7,3563.6,41.44701956]
[1732868244806,13.0156351,3563.7,3563.6,41.44701956]
[1732868245102,7.87921554,3563.7,3563.6,41.44701956]
[1732868245304,8.15977554,3563.7,3563.6,41.44701956]
[1732868245508,1.2480767,3563.7,3563.6,41.44701956]
[1732868245707,7.19246205,3563.8,3563.6,41.44701956]
[1732868245909,1.2480767,3563.7,3563.6,41.2189]
[1732868246110,1.2480767,3563.7,3563.6,41.44701594]
[1732868246408,1.2480767,3563.7,3563.6,42.07852116]
[1732868246620,7.87921554,3563.9,3563.8,0.28055]
[1732868246914,1.2480767,3563.9,3563.8,0.22811594]
[1732868247317,6.91167884,3564.0,3563.8,0.22811594]
[1732868247513,6.91167884,3564.0,3563.9,0.22811594]
[1732868247919,8.01686864,3564.0,3563.9,40.8877369]
[1732868248214,8.01686864,3564.0,3562.4,0.70166]
[1732868248215,19.31151845,3564.0,3561.9,1.2884]
[1732868248415,4.69441847,3562.0,3561.9,1.2884]
[1732868248725,7.04592729,3562.0,3561.9,2.20108323]
[1732868249018,1.5287667,3562.0,3561.9,42.43943201]
[1732868249314,1.2480767,3562.0,3561.9,42.0884]
[1732868250018,1.2480767,3562.2,3561.9,42.0884]
[1732868250212,6.62059271,3562.3,3561.9,42.0884]
[1732868250413,0.28069,3562.1,3561.9,42.0884]
[1732868250816,6.62059271,3562.3,3561.9,42.0884]
[1732868251018,0.28068,3562.2,3561.9,42.0884]
[1732868251421,5.51131093,3562.0,3561.9,42.0884]
[1732868252718,5.79200093,3562.1,3561.9,42.0884]
[1732868253218,5.51131093,3562.1,3561.9,42.0884]
[1732868253419,0.28069,3562.0,3561.9,42.0884]
[1732868255520,4.68486164,3562.0,3561.9,42.0884]
[1732868258926,0.28069,3562.0,3561.9,42.0884]
[1732868260029,0.28069,3562.0,3561.9,42.1761759]
[1732868262421,3.58051192,3562.0,3561.9,42.1761759]
[1732868263218,3.58051192,3562.0,3561.9,41.3235759]
[1732868264031,0.28069,3562.0,3561.9,41.3235759]
[1732868264628,3.57956826,3562.0,3561.9,41.3235759]
[1732868267228,3.57956826,3562.0,3561.9,41.6664]
[1732868267424,3.57956826,3562.0,3561.9,41.75417626]
[1732868270538,4.8288282,3562.0,3561.9,41.75417626]
[1732868273833,4.8288282,3562.0,3561.9,41.75417719]
[1732868275227,4.8288282,3562.0,3561.9,41.89462068]
[1732868275228,3.57956826,3562.0,3561.9,41.89462068]
[1732868275435,4.8288282,3562.0,3561.9,41.89462068]
[1732868278137,4.8288282,3562.0,3561.9,42.24572976]
[1732868279039,4.5481382,3562.0,3561.9,42.24572976]
[1732868279234,2.52730489,3562.1,3562.0,0.28069]
[1732868279539,2.19889437,3562.4,3562.1,0.28068]
[1732868279738,2.19889437,3562.4,3562.3,0.0987214]
[1732868279934,2.19889437,3562.4,3562.3,42.03978833]
[1732868280246,3.44815431,3562.4,3562.3,42.46958833]
[1732868280536,1.24925994,3562.4,3562.3,41.80912976]
[1732868280739,1.24925994,3562.4,3562.3,41.80909748]
[1732868281139,1.52991994,3562.4,3562.3,41.80909748]
[1732868281337,1.52991994,3562.4,3562.3,41.37929748]
[1732868281638,1.52991994,3562.4,3562.3,0.2281884]
[1732868283145,1.94261994,3562.4,3562.3,0.41085293]
[1732868283542,1.94261994,3562.4,3562.3,0.49862882]
[1732868283733,7.45393087,3562.4,3562.3,0.49862882]
[1732868284638,1.94261994,3562.4,3562.3,0.41085293]
[1732868286435,1.66195994,3562.4,3562.3,0.09122974]
[1732868286643,7.44492198,3562.4,3562.3,0.41978771]
[1732868286845,7.44492198,3562.4,3562.3,0.41971086]
[1732868287144,1.94261994,3562.4,3562.3,0.41971086]
[1732868288744,3.2078,3562.5,3562.3,0.41971086]
[1732868288946,0.28065,3562.6,3562.4,0.41971086]
[1732868289142,7.04319271,3562.8,3562.5,1.24691086]
[1732868289143,0.28064,3562.7,3562.5,1.24691086]
[1732868289445,0.28064,3562.8,3562.6,0.41971086]
[1732868289647,0.28063,3562.8,3562.7,0.41971086]
[1732868290442,1.52988994,3562.8,3562.7,0.41971086]
[1732868291250,8.15048265,3562.8,3562.7,0.41971086]
[1732868291449,7.86985265,3562.8,3562.7,0.41971086]
[1732868291949,9.82839271,3562.9,3562.7,0.41971086]
[1732868292151,1.24925994,3562.8,3562.6,0.28065]
[1732868292351,7.86985265,3562.8,3562.7,0.41922256]
[1732868292545,1.24925994,3562.8,3562.7,0.69986256]
[1732868293442,6.41438951,3562.8,3562.7,0.69986256]
[1732868294651,13.03805098,3562.8,3562.7,0.69986256]
[1732868294852,6.41438951,3562.8,3562.7,0.69986256]
[1732868295153,6.41438951,3562.8,3562.7,0.41922256]
[1732868295453,7.8729392,3562.8,3562.7,0.41922256]
[1732868295750,13.03806877,3562.8,3562.7,0.41922256]
[1732868296752,13.03806877,3562.8,3562.7,0.41162101]
[1732868297554,13.03515411,3562.8,3562.7,41.21162101]
[1732868299251,7.8729392,3562.8,3562.7,41.21162101]
[1732868299559,1.52988994,3562.8,3562.7,41.21162101]
[1732868299755,1.24925994,3562.8,3562.7,41.21162101]
[1732868300058,1.52988994,3562.8,3562.7,41.21162101]
[1732868300359,1.52988994,3562.8,3562.7,0.23261869]
[1732868300552,8.14983776,3562.8,3562.7,0.41165896]
[1732868300753,6.69121309,3562.8,3562.7,41.03261869]
[1732868301051,13.31099925,3562.8,3562.7,41.03261869]
[1732868301250,13.31099925,3562.8,3562.7,41.21163524]
[1732868301667,13.31099925,3562.8,3562.7,41.21165464]
[1732868301852,13.31099925,3562.8,3562.7,41.03261869]
[1732868302055,13.31099925,3562.8,3562.7,41.21164836]
[1732868302255,13.31099925,3562.8,3562.7,0.41164836]
[1732868302451,13.31099925,3562.8,3562.7,0.23261869]
[1732868302958,13.31099925,3562.8,3562.7,41.03261869]
[1732868302959,6.69121309,3562.8,3562.7,41.03261869]
[1732868303556,6.91653512,3562.8,3562.7,41.03261869]
[1732868305155,13.31020263,3562.8,3562.7,41.03261869]
[1732868305553,13.31020263,3562.8,3562.7,41.2116473]
[1732868306358,13.31020263,3562.8,3562.7,41.03261869]
[1732868306558,13.31020263,3562.8,3562.7,41.21166066]
[1732868306955,13.31020263,3562.8,3562.7,41.21171592]
[1732868307257,13.31020263,3562.8,3562.7,41.21172939]
[1732868309462,13.31020263,3562.8,3562.7,0.41172939]
[1732868310567,0.28064,3562.7,3562.5,1.2605]
[1732868310762,1.24925994,3562.6,3562.5,1.2605]
[1732868310961,1.24925994,3562.6,3562.5,42.0605]
[1732868311261,1.24925994,3562.6,3562.5,42.47255197]
[1732868314155,1.24925994,3562.6,3562.5,42.0605]
[1732868314360,1.24925994,3562.6,3562.5,42.47255006]
[1732868314560,1.52990994,3562.6,3562.5,42.47255006]
[1732868314760,1.52990994,3562.6,3562.5,1.67255006]
[1732868314968,9.61796388,3562.6,3562.1,0.09690748]
[1732868315162,9.61796388,3562.6,3562.2,0.4287]
[1732868315163,1.52992994,3562.3,3562.2,0.4287]
[1732868315361,8.14965892,3562.3,3562.2,0.4287]
[1732868315560,13.31125773,3562.3,3562.2,0.4287]
[1732868315762,13.03058773,3562.3,3562.2,0.4287]
[1732868316467,13.03071074,3562.3,3562.2,0.4287]
[1732868316857,7.86898892,3562.3,3562.2,0.4287]
[1732868317057,7.86898892,3562.3,3562.2,0.70938]
[1732868317258,1.24925994,3562.3,3562.2,1.06045406]
[1732868317961,1.24925994,3562.3,3562.2,41.95741668]
[1732868318266,6.76568174,3562.3,3562.2,41.95741668]
[1732868318563,1.24925994,3562.3,3562.2,41.50938]
[1732868318767,1.24925994,3562.3,3562.2,41.95743787]
[1732868318967,1.24925994,3562.3,3562.2,41.86044002]
[1732868319264,1.24925994,3562.3,3562.2,41.9574483]
[1732868322270,1.24925994,3562.3,3562.2,41.95744755]
[1732868323762,1.24925994,3562.3,3562.2,45.16524755]
[1732868323967,1.24925994,3562.5,3562.4,0.28066]
[1732868324271,1.24925994,3562.5,3562.4,0.44807986]
[1732868324469,1.24925994,3562.5,3562.4,0.72873986]
[1732868324973,1.24925994,3562.5,3562.4,0.86915602]
[1732868325362,1.24925994,3562.5,3562.4,0.63171927]
[1732868325672,1.24925994,3562.5,3562.4,0.95163556]
[1732868326173,1.24925994,3562.5,3562.4,1.03939483]
[1732868326867,6.61972898,3562.7,3562.6,0.28065]
[1732868326868,1.09925994,3562.7,3562.6,0.28065]
[1732868327067,7.86898892,3562.8,3562.7,0.28064]
[1732868327268,13.03246058,3562.8,3562.7,0.77801585]
[1732868327571,13.03246058,3562.8,3562.7,1.22461585]
[1732868328276,8.00464483,3563.0,3562.7,1.22461585]
[1732868328277,6.61972898,3562.9,3562.8,0.28063]
[1732868328473,13.03243472,3562.9,3562.8,0.49737585]
[1732868328670,13.31305472,3562.9,3562.8,0.49737585]
[1732868328972,13.31305472,3562.9,3562.7,0.5435844]
[1732868328973,0.28063,3562.8,3562.7,0.5435844]
[1732868329175,0.28063,3562.8,3562.7,1.29806088]
[1732868329479,8.14961892,3562.9,3562.7,1.53857895]
[1732868329666,8.14961892,3562.9,3562.8,0.500435]
[1732868329862,7.86898892,3562.9,3562.8,0.500435]
[1732868330065,6.41277841,3562.9,3562.8,0.500435]
[1732868330263,1.24925994,3562.9,3562.8,0.500435]
[1732868330466,6.69339841,3562.9,3562.8,0.500435]
[1732868330674,6.41277841,3562.9,3562.8,0.500435]
[1732868331879,6.69339841,3562.9,3562.8,0.500435]
[1732868332380,6.41277841,3562.9,3562.8,0.50007021]
[1732868333067,6.69339841,3562.9,3562.8,0.50007021]
[1732868335476,6.41277841,3562.9,3562.8,0.50007021]
[1732868335674,6.41277841,3562.9,3562.8,0.08775721]
[1732868335873,6.41277841,3562.9,3562.8,0.5002127]
[1732868336778,6.69339841,3562.9,3562.8,0.5002127]
[1732868337079,6.41277841,3562.9,3562.8,0.5002127]
[1732868339180,6.41998532,3562.9,3562.8,0.5002127]
[1732868339574,6.41998532,3562.9,3562.8,0.17740723]
[1732868339877,6.41998532,3562.9,3562.8,0.50031855]
[1732868340279,6.70060532,3562.9,3562.8,0.50031855]
[1732868341482,6.70060532,3562.9,3562.8,0.50030519]
[1732868342384,6.41998532,3562.9,3562.8,0.50030519]
[1732868342781,0.2807,3562.0,3561.6,3.2078]
[1732868342977,1.24925994,3561.8,3561.7,1.21798279]
[1732868343178,8.15652002,3561.8,3561.7,1.21798279]
[1732868343380,6.77621355,3561.8,3561.7,0.8669]
[1732868344185,13.39979933,3561.8,3561.7,0.8669]
[1732868344782,13.39981434,3561.8,3561.7,0.8669]
[1732868344983,13.11910434,3561.8,3561.7,0.8669]
[1732868345183,7.87286073,3561.8,3561.7,0.8669]
[1732868345384,1.24925994,3561.8,3561.7,0.8669]
[1732868345894,1.52996994,3561.8,3561.7,0.8669]
[1732868346091,7.87286073,3561.8,3561.7,0.8669]
[1732868346392,1.24925994,3561.8,3561.7,0.8669]
[1732868347197,1.52996994,3561.8,3561.7,0.8669]
[1732868347787,1.52996994,3561.8,3561.7,0.4223]
[1732868348590,1.52996994,3561.8,3561.6,40.8]
[1732868348591,0.28072,3561.7,3561.6,40.8]
[1732868349090,7.87286073,3561.8,3561.4,0.4334]
[1732868349301,1.24925994,3561.5,3561.4,0.4334]
[1732868349791,1.52998994,3561.5,3561.4,41.2334]
[1732868349996,1.24925994,3561.5,3561.4,41.2334]
[1732868350697,1.24925994,3561.5,3561.4,41.41084718]
[1732868351390,6.76099472,3561.5,3561.4,41.41084718]
[1732868351597,6.76099472,3561.5,3561.4,41.41092749]
[1732868352193,7.04172472,3561.5,3561.4,41.41092749]
[1732868352389,7.04172472,3561.5,3561.4,41.2334]
[1732868352390,1.52998994,3561.5,3561.4,41.2334]
[1732868352598,1.24925994,3561.5,3561.4,41.2334]
[1732868352891,1.24925994,3561.5,3561.4,41.37538708]
[1732868353093,5.51061745,3561.5,3561.4,41.65612708]
[1732868353294,5.51061745,3561.5,3561.4,41.83361751]
[1732868353295,6.75987739,3561.5,3561.4,41.83361751]
[1732868353696,1.24925994,3561.5,3561.4,41.83361751]
[1732868354490,4.40725948,3561.5,3561.4,41.83361751]
[1732868354799,4.40725948,3561.5,3561.4,41.92228313]
[1732868355797,5.65651942,3561.6,3561.4,41.92228313]
[1732868355995,5.65651942,3561.6,3561.5,0.40814313]
[1732868356897,3.3045904,3561.6,3561.5,1.93813307]
[1732868357196,3.3045904,3561.6,3561.5,0.68887313]
[1732868357702,3.3045904,3561.6,3561.5,41.48887313]
[1732868357998,1.53010308,3561.6,3561.5,42.80850363]
[1732868358302,4.40725948,3562.1,3561.9,0.2807]
[1732868358507,4.40725948,3562.1,3562.0,1.13422721]
[1732868358691,4.40725948,3562.3,3562.1,0.28069]
[1732868359006,4.40725948,3562.3,3562.2,0.68850126]
[1732868359301,1.24925994,3562.4,3562.3,0.28067]
[1732868359503,1.24925994,3562.4,3562.3,0.51114134]
[1732868360099,1.24925994,3562.4,3562.3,3.89629719]
[1732868360397,4.40559418,3562.4,3562.3,3.89629719]
[1732868360696,4.40559418,3562.5,3562.4,0.28066]
[1732868360901,4.40559418,3562.5,3562.4,0.68848719]
[1732868361498,4.40559418,3562.5,3562.4,0.40782719]
[1732868361695,4.40559418,3562.5,3562.4,0.4078265]
[1732868361696,5.65472816,3562.5,3562.4,0.4078265]
[1732868361903,1.24925994,3562.5,3562.4,0.4078265]
[1732868362102,1.52990994,3562.5,3562.4,0.4078265]
[1732868362297,7.04052739,3562.5,3562.4,0.2304743]
[1732868362704,1.52990994,3562.5,3562.4,0.2304743]
[1732868362906,7.03691999,3562.5,3562.4,0.2304743]
[1732868363298,1.52990994,3562.5,3562.4,0.2304743]
[1732868364197,1.52990994,3562.5,3561.8,0.09676174]
[1732868364198,0.28066,3562.4,3561.8,0.28071]
[1732868364400,5.6556398,3561.9,3561.8,0.28071]
[1732868364602,5.6556398,3561.9,3561.8,0.59670522]
[1732868364805,5.6556398,3561.9,3561.8,0.31599522]
[1732868365700,5.6556398,3561.9,3561.8,0.14044232]
[1732868365701,7.03793476,3561.9,3561.8,0.14044232]
[1732868366301,1.52995994,3561.9,3561.8,0.14044232]
[1732868366504,7.03780389,3561.9,3561.8,0.14044232]
[1732868366807,6.75704417,3561.9,3561.8,0.14044232]
[1732868368908,6.75704417,3561.9,3561.8,0.14044776]
[1732868369406,5.50778423,3561.9,3561.8,0.59671715]
[1732868369610,5.91888423,3562.0,3561.8,0.59671715]
[1732868369809,5.91888423,3562.0,3561.9,0.14044776]
[1732868370508,6.19957423,3562.0,3561.9,0.14044776]
[1732868371104,5.91888423,3562.0,3561.9,0.42114776]
[1732868371406,5.91888423,3562.0,3561.9,0.31600446]
[1732868371603,6.19957423,3562.0,3561.9,0.31600446]
[1732868372212,0.69179,3562.0,3561.9,0.14044763]
[1732868374303,0.69179,3562.0,3561.9,0.31600776]
[1732868374504,0.69179,3562.0,3561.9,0.14044763]
[1732868374709,0.69179,3562.0,3561.9,0.31600772]
[1732868375009,0.69179,3562.0,3561.9,0.14044763]
[1732868375506,0.69179,3562.0,3561.6,0.28072]
[1732868375708,4.40658281,3561.7,3561.6,0.28072]
[1732868375906,4.40658281,3561.7,3561.6,0.59672818]
[1732868376303,4.40658281,3561.7,3561.6,0.68450844]
[1732868376699,4.40658281,3561.7,3561.6,1.13124397]
[1732868376905,1.24925994,3561.8,3561.6,1.13124397]
[1732868376906,5.65584275,3561.8,3561.7,0.28072]
[1732868377104,5.65584275,3561.8,3561.7,0.68450844]
[1732868377807,1.24925994,3561.8,3561.7,0.68450844]
[1732868378002,5.65647847,3561.8,3561.7,0.28072]
[1732868378199,5.91932851,3562.0,3561.7,0.40378501]
[1732868378402,4.40735674,3561.9,3561.8,0.44672343]
[1732868378606,4.40735674,3561.9,3561.8,1.13120947]
[1732868378912,4.40735674,3562.0,3561.9,0.2807]
[1732868379117,4.40735674,3562.1,3562.0,0.28069]
[1732868379409,4.40735674,3562.1,3562.0,1.46803853]
[1732868379609,4.40735674,3562.1,3562.0,1.56364577]
[1732868380015,4.40735674,3562.1,3562.0,1.46803853]
[1732868380606,5.95652851,3562.3,3562.0,1.18734853]
[1732868380803,5.95652851,3562.3,3562.2,0.28068]
[1732868381010,5.95652851,3562.3,3562.2,0.68445604]
[1732868381712,0.4483,3562.3,3562.2,0.68445604]
[1732868382619,5.9587842,3562.3,3562.2,0.68445604]
[1732868386519,5.9587842,3562.3,3562.2,0.68440168]
[1732868388522,5.96228816,3562.3,3562.2,0.68440168]
[1732868389121,5.51398816,3562.3,3562.2,0.68440168]
[1732868389318,5.51398816,3562.3,3562.2,1.0354612]
[1732868390330,5.51398816,3562.3,3562.2,1.1310726]
[1732868390626,5.51398816,3562.3,3562.2,1.56144448]
[1732868390812,5.51398816,3562.5,3562.2,1.18516492]
[1732868391014,5.51398816,3562.5,3562.4,3.48846]
[1732868391222,5.51398816,3562.5,3562.4,3.8921654]
[1732868391619,5.51398816,3562.5,3562.4,4.24320578]
[1732868392018,5.51398816,3562.5,3562.4,3.98777227]
[1732868392225,5.51398816,3562.5,3562.4,45.13879841]
[1732868392525,5.51398816,3562.5,3562.4,45.04319154]
[1732868393315,5.51398816,3562.6,3562.4,44.0078]
[1732868393521,5.51398816,3562.6,3562.5,0.98912403]
[1732868393717,5.51398816,3562.6,3562.5,1.12953694]
[1732868394125,1.24925994,3562.8,3562.7,0.28064]
[1732868394324,1.24925994,3562.8,3562.7,0.68432694]
[1732868396633,1.24925994,3562.8,3562.7,0.28064]
[1732868396930,1.24925994,3562.8,3562.7,0.68432169]
[1732868398626,1.52988994,3562.8,3562.7,0.40368169]
[1732868399526,1.24925994,3562.8,3562.7,0.40368169]
[1732868400030,1.24925994,3562.8,3562.7,0.28064]
[1732868400332,1.24925994,3562.8,3562.7,0.42105232]
[1732868400533,1.24925994,3562.8,3562.7,0.68432542]
[1732868400833,0.41900691,3562.9,3562.8,0.28063]
[1732868401029,1.66826685,3562.9,3562.8,0.50880002]
[1732868401832,0.41900691,3562.9,3562.8,3.71660002]
[1732868402028,0.41900691,3562.9,3562.8,3.89210847]
[1732868402530,0.41900691,3562.9,3562.8,3.62883298]
[1732868402738,0.41900691,3562.9,3562.8,3.89208856]
[1732868403629,1.66826685,3562.9,3562.8,3.89208856]
[1732868403824,0.41900691,3562.9,3562.8,3.89208856]
[1732868404032,6.47409876,3563.1,3562.8,3.61145856]
[1732868404228,8.15510716,3563.3,3563.2,0.2806]
[1732868404426,0.4411,3563.5,3563.2,4.86070463]
[1732868404427,0.4121,3563.5,3563.2,4.86070463]
[1732868404626,0.4121,3563.5,3563.4,0.28058]
[1732868404836,8.82252246,3563.6,3563.5,0.28058]
[1732868405130,8.82252246,3563.6,3563.5,0.68422469]
[1732868405331,8.82252246,3563.6,3563.5,41.48422469]
[1732868405632,8.82252246,3563.6,3563.5,41.93067171]
[1732868405935,8.82252246,3563.6,3563.5,41.83502785]
[1732868406535,8.82252246,3563.6,3563.5,51.40642904]
[1732868407840,4.3978721,3564.4,3564.3,0.28051]
[1732868408040,4.3978721,3564.4,3564.3,0.50859587]
[1732868408244,7.16400006,3564.6,3564.4,0.28051]
[1732868408245,4.3978721,3564.5,3564.4,0.28051]
[1732868408430,4.3978721,3564.5,3564.4,41.16823533]
[1732868408739,6.06453204,3564.6,3564.4,41.16823533]
[1732868408932,6.06453204,3564.6,3564.5,0.08772533]
[1732868409234,1.94714994,3564.6,3564.5,0.17543299]
[1732868409428,1.94714994,3564.6,3564.4,40.8]
[1732868409634,1.94714994,3564.6,3564.5,0.17543288]
[1732868411135,0.28052,3564.2,3564.1,3.2078]
[1732868411339,1.52977994,3564.2,3564.1,3.2078]
[1732868411635,1.52977994,3564.2,3563.7,0.4107]
[1732868411636,1.24925994,3564.2,3563.9,0.28054]
[1732868411833,1.24925994,3564.2,3563.7,0.4107]
[1732868412136,3.2078,3564.4,3564.0,0.14036262]
[1732868412137,0.408,3564.1,3564.0,0.14036262]
[1732868412330,0.408,3564.1,3564.0,0.42090262]
[1732868413239,0.408,3564.1,3564.0,0.14035741]
[1732868413534,0.408,3564.1,3563.1,3.2078]
[1732868413736,1.24925994,3563.3,3563.0,0.4419]
[1732868414041,1.24925994,3563.3,3563.2,0.2806]
[1732868414235,1.24925994,3563.5,3563.4,0.28058]
[1732868414429,1.24925994,3563.5,3563.4,0.14038605]
[1732868414730,1.24925994,3563.5,3563.0,1.69115994]
[1732868414731,0.28059,3563.4,3563.0,0.72251]
[1732868414941,0.28059,3563.4,3563.1,0.14038893]
[1732868415131,1.52983994,3563.5,3563.2,0.42098893]
[1732868415327,1.52983994,3563.5,3563.2,0.2806]
[1732868415538,1.52983994,3563.5,3563.1,0.2806]
[1732868415732,0.28059,3563.3,3563.2,0.14038885]
[1732868416335,3.2078,3563.6,3563.2,0.14039281]
[1732868416535,0.4307,3563.5,3563.3,0.42097661]
[1732868416732,0.4307,3563.5,3563.0,0.4419]
[1732868416937,0.4307,3563.5,3563.1,3.52366065]
[1732868417140,0.4307,3563.5,3563.3,0.28059]
[1732868417343,0.4307,3563.5,3563.4,0.14038251]
[1732868417739,0.4307,3563.5,3563.4,0.42096251]
[1732868418043,3.2078,3563.8,3563.7,0.28056]
[1732868418540,3.2078,3563.8,3563.7,41.08056]
[1732868418839,0.4414,3563.9,3563.8,0.28055]
[1732868419139,0.4414,3563.9,3563.8,0.42092168]
[1732868419339,0.4414,3563.9,3563.8,1.12875]
[1732868419534,0.4414,3563.9,3563.8,1.26911696]
[1732868421842,0.4414,3563.9,3563.8,1.44456245]
[1732868423048,0.4414,3563.9,3563.8,1.53227796]
[1732868423349,0.4414,3563.9,3563.8,1.62000139]
[1732868428539,0.4414,3563.9,3563.8,1.62000495]
[1732868429942,0.4414,3563.9,3563.8,1.35683272]
[1732868430246,0.4414,3563.9,3563.8,1.62000205]
[1732868430554,0.4414,3563.9,3563.8,1.62000174]
[1732868430844,3.29180607,3564.3,3564.2,0.28052]
[1732868431049,3.73830607,3564.3,3564.2,0.59632349]
[1732868431252,3.73830607,3564.3,3564.2,0.31580349]
[1732868431446,4.01881607,3564.3,3564.2,0.31580349]
[1732868431841,0.72701,3564.3,3564.2,0.31580349]
[1732868432446,0.4465,3564.3,3564.2,0.31580349]
[1732868432651,0.4465,3564.3,3564.2,0.59632349]
[1732868433252,0.4465,3564.3,3564.2,0.77176366]
[1732868434051,3.74383365,3564.3,3564.2,0.77176366]
[1732868435254,0.4465,3564.3,3564.2,0.77176366]
[1732868435552,0.4465,3564.3,3564.2,0.77173632]
[1732868435751,3.74557117,3564.3,3564.2,0.77173632]
[1732868436152,3.74557117,3564.3,3564.2,0.49121632]
[1732868436153,1.9748351,3564.3,3564.2,0.49121632]
[1732868436350,6.3727072,3564.3,3564.2,0.49121632]
[1732868437055,1.9748351,3564.3,3564.2,0.49121632]
[1732868437356,7.47217522,3564.3,3564.2,0.2280627]
[1732868437554,1.9748351,3564.3,3564.2,0.2280627]
[1732868437958,1.6943251,3564.3,3564.2,0.5085827]
[1732868438257,1.6943251,3564.3,3564.2,0.50859479]
[1732868438258,0.4465,3564.3,3564.2,0.50859479]
[1732868438456,0.4465,3564.3,3564.2,0.59630691]
[1732868438657,0.4465,3564.3,3564.2,0.68402549]
[1732868440063,5.95090353,3564.3,3564.2,0.68402549]
[1732868440448,0.4465,3564.3,3564.2,0.68402565]
[1732868440852,5.95594615,3564.3,3564.2,0.68402565]
[1732868443862,5.95594615,3564.3,3564.2,0.28052]
[1732868444050,5.95594615,3564.3,3564.2,0.68401958]
[1732868445052,5.95594615,3564.3,3564.2,0.40349958]
[1732868445260,0.72701,3564.3,3564.2,0.40349958]
[1732868447359,0.72701,3564.3,3564.0,0.28053]
[1732868447559,0.72701,3564.3,3564.1,0.50861968]
[1732868447759,0.72701,3564.3,3564.2,0.40354328]
[1732868447956,12.36745413,3564.3,3564.2,0.40354328]
[1732868449756,12.37908148,3564.3,3564.2,0.40354328]
[1732868449961,18.18782484,3564.3,3562.9,3.2078]
[1732868450152,18.18782484,3564.3,3563.0,3.12769201]
[1732868450153,3.30877932,3563.1,3563.0,3.12769201]
[1732868450358,4.41170576,3563.2,3563.0,41.71247201]
[1732868450556,4.41170576,3563.2,3563.0,40.8]
[1732868450557,2.86081995,3563.1,3563.0,40.8]
[1732868450958,0.28065,3562.6,3562.5,3.2078]
[1732868451257,5.79628279,3562.6,3562.5,3.55882072]
[1732868451461,5.79628279,3562.6,3562.5,44.35882072]
[1732868451462,0.28065,3562.6,3562.5,44.35882072]
[1732868451661,5.79628279,3562.6,3562.5,44.0078]
[1732868452068,5.79628279,3562.6,3562.5,3.2078]
[1732868452256,0.28065,3562.6,3562.5,3.2078]
[1732868454163,5.78752466,3562.6,3562.5,3.2078]
[1732868454465,0.28065,3562.6,3562.5,3.2078]
[1732868454865,5.78752466,3562.6,3562.5,3.2078]
[1732868455664,0.28065,3562.6,3562.5,3.2078]
[1732868457556,4.68066868,3562.6,3562.5,3.2078]
[1732868457869,0.28068,3562.2,3562.1,40.8]
[1732868458166,3.30018665,3562.2,3562.1,40.8]
[1732868458565,5.8803966,3562.3,3562.1,40.8]
[1732868458861,3.58085665,3562.4,3562.1,40.8]
[1732868459070,3.30018665,3562.3,3562.1,40.8]
[1732868459366,3.58085665,3562.4,3562.1,40.8]
[1732868460264,3.30018665,3562.4,3562.1,40.8]
[1732868461169,3.30018665,3562.5,3562.2,0.4346]
[1732868461462,3.30018665,3562.5,3562.3,0.4422]
[1732868461664,3.58084665,3562.5,3562.3,0.8723]
[1732868461865,3.58084665,3562.5,3562.4,0.08776605]
[1732868462361,3.58084665,3562.5,3562.3,0.8723]
[1732868462964,3.30018665,3562.5,3562.1,40.8]
[1732868463265,3.30018665,3562.5,3561.0,9.87904255]
[1732868463266,2.58020995,3562.3,3561.7,0.4346]
[1732868463464,2.58020995,3562.0,3561.9,0.08777268]
[1732868463670,0.28068,3562.2,3561.9,0.94197268]
[1732868463861,5.8803966,3562.3,3562.0,40.88777268]
[1732868463862,6.1610666,3562.3,3562.0,40.88777268]
[1732868464065,2.86087995,3562.3,3562.1,0.08777268]
[1732868464366,2.58020995,3562.3,3562.0,40.8]
[1732868464566,2.58020995,3562.3,3562.1,0.08777027]
[1732868464760,2.58020995,3562.3,3562.2,0.08777027]
[1732868464761,2.86087995,3562.3,3562.2,0.08777027]
[1732868464971,2.58020995,3562.3,3562.2,0.08777027]
[1732868465372,2.86087995,3562.3,3562.2,0.08777027]
[1732868466270,2.86087995,3562.3,3562.2,0.08777039]
[1732868466764,2.58020995,3562.3,3562.2,0.08777039]
[1732868466966,0.28066,3562.5,3562.2,0.08777039]
[1732868467172,0.28066,3562.5,3562.3,0.08777039]
[1732868467377,0.28066,3562.5,3562.4,0.4179]
[1732868468264,3.02740995,3562.6,3562.0,40.8]
[1732868468572,2.58020995,3562.2,3562.1,0.08776777]
[1732868470172,2.58020995,3562.2,3562.1,0.36845777]
[1732868470374,2.86086995,3562.5,3562.1,0.50888501]
[1732868470569,0.28067,3562.4,3562.2,0.08776777]
[1732868470771,0.28067,3562.4,3562.3,0.08776777]
[1732868472563,0.28069,3562.0,3561.9,0.4398]
[1732868472767,0.28069,3562.0,3561.9,0.66800491]
[1732868473680,0.28069,3562.0,3561.9,0.52757863]
[1732868474474,0.28069,3562.0,3561.9,0.66802289]
[1732868475074,0.28069,3562.0,3561.9,0.08777863]
[1732868475274,0.28073,3561.6,3561.1,3.2078]
[1732868475581,7.64243665,3562.0,3561.2,0.14046332]
[1732868475582,0.28075,3561.3,3561.2,0.14046332]
[1732868476967,0.28075,3561.3,3561.2,40.94046332]
[1732868477371,0.2808,3560.6,3560.5,0.09395387]
[1732868477571,2.86101995,3560.6,3560.5,0.17560296]
[1732868477777,2.86100995,3560.6,3560.5,40.8]
[1732868479274,0.2808,3560.7,3560.3,3.2078]
[1732868479477,0.2808,3560.7,3560.4,0.17562325]
[1732868479674,0.4461,3560.8,3560.5,40.97562325]
[1732868479675,2.86100995,3560.6,3560.5,40.97562325]